bitfinex-derivatives/quotes_BTCF0:USTF0_20240929
["timestamp","ask_amount","ask_price","bid_price","bid_amount"]
[1727634419781,0.21423986,65813.0,65812.0,0.078953]
[1727634419974,0.36560263,65813.0,65812.0,0.078953]
[1727634420888,0.21423986,65813.0,65812.0,0.078953]
[1727634421275,0.36560263,65813.0,65812.0,0.078953]
[1727634421488,0.21423986,65813.0,65812.0,0.078953]
[1727634422383,0.21433182,65813.0,65812.0,0.078953]
[1727634423277,0.21433182,65813.0,65812.0,0.088953]
[1727634423478,0.36569459,65813.0,65812.0,0.078953]
[1727634423681,0.21433182,65813.0,65812.0,0.078953]
[1727634423880,0.36569459,65813.0,65812.0,0.078953]
[1727634424087,0.35569459,65813.0,65812.0,0.078953]
[1727634424387,0.20433182,65813.0,65812.0,0.078953]
[1727634425084,0.21433182,65813.0,65812.0,0.078953]
[1727634426284,0.23731577,65813.0,65812.0,0.59360165]
[1727634426488,0.15136277,65813.0,65812.0,0.73015503]
[1727634426678,0.16136277,65813.0,65812.0,0.73015503]
[1727634426874,0.23731577,65813.0,65812.0,0.21550638]
[1727634427288,0.23731577,65813.0,65812.0,0.51117648]
[1727634427587,0.23731577,65813.0,65812.0,0.73014251]
[1727634428591,0.23731577,65813.0,65812.0,0.59358913]
[1727634430192,0.23731577,65813.0,65812.0,0.078953]
[1727634433894,0.22731577,65813.0,65812.0,0.078953]
[1727634435002,0.075953,65813.0,65812.0,0.078953]
[1727634435499,0.075953,65813.0,65812.0,0.088953]
[1727634435889,0.085953,65813.0,65812.0,0.088953]
[1727634436603,0.085953,65813.0,65812.0,0.078953]
[1727634439198,0.12353659,65813.0,65812.0,0.078953]
[1727634440502,0.12353147,65813.0,65812.0,0.078953]
[1727634441704,0.085953,65813.0,65812.0,0.29658212]
[1727634449706,0.16655649,65813.0,65812.0,0.078953]
[1727634450816,0.166299,65813.0,65812.0,0.078953]
[1727634452108,0.166299,65813.0,65812.0,0.088953]
[1727634456717,0.12111124,65815.0,65812.0,0.60219528]
[1727634456916,0.075952,65814.0,65813.0,0.7259897]
[1727634457123,0.075952,65814.0,65813.0,0.7359897]
[1727634459910,0.075952,65814.0,65813.0,0.7369897]
[1727634464425,0.075952,65814.0,65813.0,0.44319859]
[1727634464615,0.075952,65814.0,65813.0,0.22482561]
[1727634464616,0.15781002,65814.0,65813.0,0.22482561]
[1727634464926,0.15781002,65814.0,65813.0,0.086953]
[1727634466817,0.08185802,65814.0,65813.0,0.086953]
[1727634467111,0.12111625,65814.0,65813.0,0.086953]
[1727634467311,0.20297427,65814.0,65813.0,0.086953]
[1727634467521,0.12111625,65814.0,65813.0,0.086953]
[1727634467722,0.1650954,65814.0,65813.0,0.086953]
[1727634467925,0.12111625,65814.0,65813.0,0.086953]
[1727634468426,0.08185802,65814.0,65813.0,0.086953]
[1727634468723,0.12111113,65814.0,65813.0,0.086953]
[1727634468924,0.15899,65814.0,65813.0,0.086953]
[1727634469116,0.08185802,65814.0,65813.0,0.086953]
[1727634469613,0.12111113,65816.0,65815.0,0.075951]
[1727634469819,0.15913734,65816.0,65815.0,0.255951]
[1727634470018,0.20328755,65816.0,65815.0,0.255951]
[1727634471031,0.20528755,65816.0,65815.0,0.255951]
[1727634471718,0.002,65816.0,65815.0,0.60943972]
[1727634471928,0.004,65816.0,65815.0,0.60943972]
[1727634476820,0.441007,65819.0,65818.0,0.075948]
[1727634477021,0.436747,65819.0,65818.0,0.38263106]
[1727634478133,0.436747,65819.0,65818.0,0.38363106]
[1727634478134,0.446747,65819.0,65818.0,0.38363106]
[1727634479218,0.085947,65819.0,65818.0,0.52042531]
[1727634479830,0.085947,65819.0,65818.0,0.38363106]
[1727634480029,0.085947,65819.0,65818.0,0.38358242]
[1727634482735,0.085947,65819.0,65818.0,0.74438242]
[1727634483532,0.085947,65819.0,65818.0,0.74435167]
[1727634484135,0.095947,65819.0,65818.0,0.74435167]
[1727634484535,0.085947,65819.0,65818.0,0.77071404]
[1727634485530,0.01,65819.0,65818.0,0.77071404]
[1727634486730,0.05413055,65819.0,65818.0,0.47811406]
[1727634486927,0.09213982,65819.0,65818.0,0.47811406]
[1727634487134,0.14239164,65819.0,65818.0,0.47811406]
[1727634487948,0.14239164,65819.0,65818.0,0.55406206]
[1727634488445,0.14014433,65819.0,65818.0,0.55406206]
[1727634492441,0.14014433,65819.0,65818.0,0.19326206]
[1727634492644,0.14014433,65819.0,65818.0,0.55406206]
[1727634494235,0.14014195,65819.0,65818.0,0.55406206]
[1727634494639,0.21608795,65819.0,65818.0,0.54406206]
[1727634494837,0.03274902,65819.0,65818.0,0.73548342]
[1727634500748,0.03274902,65819.0,65818.0,0.37468342]
[1727634501939,0.11446771,65819.0,65816.0,0.34603487]
[1727634502135,0.03274902,65819.0,65818.0,0.08]
[1727634502335,0.11452576,65819.0,65818.0,0.08]
[1727634502546,0.16455546,65819.0,65818.0,0.08]
[1727634502847,0.16455546,65819.0,65818.0,0.155948]
[1727634504262,0.16755546,65819.0,65818.0,0.155948]
[1727634505060,0.16955546,65819.0,65818.0,0.155948]
[1727634509869,0.03774902,65819.0,65818.0,0.37491112]
[1727634512863,0.03774902,65819.0,65818.0,0.37632205]
[1727634513971,0.03774902,65819.0,65818.0,0.48632205]
[1727634516771,0.03774902,65819.0,65818.0,0.265948]
[1727634516772,0.15894034,65819.0,65818.0,0.265948]
[1727634516972,0.23701568,65819.0,65818.0,0.265948]
[1727634517278,0.23700547,65819.0,65818.0,0.265948]
[1727634518369,0.23700547,65819.0,65814.0,0.0035]
[1727634518370,0.91700547,65819.0,65814.0,0.0035]
[1727634518569,0.3608,65815.0,65804.0,0.04748978]
[1727634518774,0.516763,65805.0,65804.0,0.04748978]
[1727634518977,0.516763,65805.0,65801.0,0.00227939]
[1727634518978,0.075972,65797.0,65796.0,0.00030175]
[1727634519170,0.82420839,65797.0,65796.0,0.00030175]
[1727634519372,0.65868478,65797.0,65796.0,0.00030175]
[1727634519572,0.56290048,65797.0,65796.0,0.00030175]
[1727634519869,0.60309361,65797.0,65796.0,0.00030175]
[1727634520071,0.075985,65786.0,65785.0,0.00228016]
[1727634520272,0.11211348,65786.0,65785.0,0.00228016]
[1727634521880,0.11311348,65786.0,65785.0,0.00828016]
[1727634522281,0.076985,65786.0,65785.0,0.00828016]
[1727634522481,0.077985,65786.0,65785.0,0.01128016]
[1727634523877,0.3608,65787.0,65785.0,0.01128016]
[1727634523878,0.33993698,65787.0,65785.0,0.23399607]
[1727634524188,0.075985,65786.0,65785.0,0.01128016]
[1727634524377,0.075985,65786.0,65785.0,0.11280827]
[1727634524983,0.33993698,65787.0,65785.0,0.11280827]
[1727634525180,0.41591998,65787.0,65786.0,0.10152811]
[1727634525581,0.076983,65787.0,65786.0,0.10152811]
[1727634525776,0.437783,65787.0,65786.0,0.10152811]
[1727634526984,0.436783,65787.0,65786.0,0.10152811]
[1727634527184,0.437783,65787.0,65786.0,0.10852811]
[1727634527386,0.438783,65787.0,65786.0,0.10852811]
[1727634527980,0.437783,65787.0,65786.0,0.10852811]
[1727634528180,0.438783,65787.0,65786.0,0.11452811]
[1727634528684,0.458783,65787.0,65786.0,0.11452811]
[1727634529895,0.097983,65787.0,65786.0,0.11452811]
[1727634530090,0.458783,65787.0,65786.0,0.11452811]
[1727634532087,0.458783,65787.0,65786.0,0.11325897]
[1727634533498,0.438783,65787.0,65786.0,0.26924397]
[1727634536487,0.438783,65787.0,65786.0,0.27924397]
[1727634536989,0.438783,65787.0,65786.0,0.27917088]
[1727634538890,0.3628,65787.0,65786.0,0.178985]
[1727634539100,0.3628,65787.0,65786.0,0.098985]
[1727634539892,0.438783,65787.0,65786.0,0.098985]
[1727634542703,0.438783,65787.0,65786.0,0.142285]
[1727634546903,0.39316215,65787.0,65786.0,0.60673353]
[1727634547107,0.39316215,65787.0,65786.0,0.50045734]
[1727634548100,0.39316215,65787.0,65786.0,0.65827079]
[1727634548510,0.075983,65787.0,65786.0,0.65827079]
[1727634550602,0.075983,65787.0,65786.0,0.68403074]
[1727634553799,0.02275917,65787.0,65786.0,0.68403074]
[1727634554005,0.0035,65791.0,65786.0,0.68403074]
[1727634554006,0.075983,65788.0,65787.0,0.075983]
[1727634554213,0.085983,65788.0,65787.0,0.66576039]
[1727634554402,0.085983,65788.0,65787.0,0.30758805]
[1727634554903,0.085983,65788.0,65787.0,0.19758805]
[1727634555204,0.086983,65788.0,65787.0,0.081983]
[1727634555402,0.086983,65788.0,65787.0,0.21926944]
[1727634555711,0.011,65788.0,65787.0,0.56331769]
[1727634555902,0.086983,65788.0,65787.0,0.56331769]
[1727634556103,0.086983,65788.0,65787.0,0.67331746]
[1727634557013,0.086983,65788.0,65787.0,0.55507387]
[1727634557214,0.086983,65788.0,65787.0,0.41778752]
[1727634557513,0.086983,65788.0,65787.0,0.31858669]
[1727634558714,0.086983,65788.0,65787.0,0.196983]
[1727634559316,0.076983,65788.0,65787.0,0.196983]
[1727634563717,0.11514067,65788.0,65787.0,0.276983]
[1727634564808,0.076983,65788.0,65787.0,0.276983]
[1727634567211,0.076983,65788.0,65787.0,0.196983]
[1727634568616,0.11511985,65788.0,65787.0,0.196983]
[1727634569518,0.437657,65793.0,65787.0,0.70613773]
[1727634569717,0.476777,65793.0,65792.0,0.12161493]
[1727634570021,0.476777,65793.0,65792.0,0.47502332]
[1727634570823,0.476777,65793.0,65792.0,0.47602332]
[1727634571406,0.476777,65793.0,65792.0,0.55200132]
[1727634571611,0.556777,65793.0,65792.0,0.47602332]
[1727634573020,0.556777,65793.0,65792.0,0.55200132]
[1727634573212,0.556777,65793.0,65792.0,0.43038639]
[1727634573412,0.476777,65793.0,65792.0,0.43038639]
[1727634573710,0.476777,65793.0,65792.0,0.61038639]
[1727634574408,0.4008,65793.0,65792.0,0.61038639]
[1727634574613,0.075972,65798.0,65796.0,0.075972]
[1727634574915,0.075972,65798.0,65797.0,0.39660839]
[1727634574916,0.085972,65798.0,65797.0,0.39660839]
[1727634575117,0.085972,65798.0,65797.0,0.51821486]
[1727634575314,0.085972,65798.0,65797.0,0.40580582]
[1727634575315,0.075972,65798.0,65797.0,0.40580582]
[1727634575717,0.436767,65801.0,65800.0,0.075968]
[1727634575913,0.446767,65801.0,65800.0,0.29260182]
[1727634576314,0.53170045,65801.0,65800.0,0.075968]
[1727634577314,0.61170045,65801.0,65800.0,0.075968]
[1727634577824,0.62770045,65801.0,65800.0,0.077968]
[1727634578211,0.61970045,65801.0,65800.0,0.001]
[1727634578413,0.67165209,65801.0,65800.0,0.075968]
[1727634579216,0.66465209,65801.0,65800.0,0.075968]
[1727634582818,0.075971,65798.0,65797.0,0.01077576]
[1727634583021,0.31285609,65798.0,65797.0,0.01077576]
[1727634583726,0.31285609,65798.0,65797.0,0.08674776]
[1727634583927,0.31285609,65798.0,65797.0,0.09174776]
[1727634584121,0.31285609,65798.0,65797.0,0.01577576]
[1727634584519,0.175971,65798.0,65797.0,0.2312196]
[1727634585526,0.1,65798.0,65797.0,0.2312196]
[1727634585723,0.175971,65798.0,65797.0,0.2312196]
[1727634586924,0.175971,65798.0,65797.0,0.2262196]
[1727634587116,0.175971,65798.0,65797.0,0.2292196]
[1727634588725,0.175971,65798.0,65797.0,0.3151916]
[1727634589425,0.175971,65798.0,65797.0,0.31424395]
[1727634590428,0.095971,65798.0,65797.0,0.31424395]
[1727634591022,0.075971,65798.0,65797.0,0.31424395]
[1727634591418,0.18191126,65798.0,65797.0,0.09974776]
[1727634591734,0.23106861,65798.0,65797.0,0.09974776]
[1727634592229,0.23106861,65798.0,65797.0,0.08974776]
[1727634593234,0.12512835,65798.0,65797.0,0.09974776]
[1727634593527,0.075971,65798.0,65797.0,0.09974776]
[1727634595118,0.11518958,65798.0,65797.0,0.09974776]
[1727634595319,0.075971,65798.0,65797.0,0.09974776]
[1727634595524,0.11518843,65798.0,65797.0,0.09974776]
[1727634598140,0.11518843,65798.0,65797.0,0.08974776]
[1727634599231,0.075971,65798.0,65797.0,0.08974776]
[1727634599431,0.075971,65798.0,65797.0,0.30414132]
[1727634600530,0.075971,65798.0,65797.0,0.31414132]
[1727634601028,0.517687,65801.0,65797.0,0.44950765]
[1727634601228,0.526767,65801.0,65797.0,0.44950765]
[1727634601431,0.075971,65798.0,65797.0,0.44950765]
[1727634602242,0.075971,65798.0,65797.0,0.60315885]
[1727634602441,0.075971,65798.0,65797.0,0.44950765]
[1727634602634,0.075971,65798.0,65797.0,0.60195112]
[1727634602939,0.517647,65801.0,65797.0,0.60597912]
[1727634603144,0.436767,65801.0,65800.0,0.075968]
[1727634603335,0.436767,65801.0,65800.0,0.42455139]
[1727634604233,0.436767,65801.0,65800.0,0.50455139]
[1727634604545,0.436767,65801.0,65800.0,0.62608622]
[1727634604940,0.438767,65801.0,65800.0,0.62608622]
[1727634605538,0.439767,65801.0,65800.0,0.62608622]
[1727634606435,0.439767,65801.0,65800.0,0.07994624]
[1727634606436,0.57811607,65801.0,65800.0,0.07994624]
[1727634606744,0.57811607,65801.0,65800.0,0.15591424]
[1727634607437,0.49228008,65801.0,65800.0,0.15591424]
[1727634607636,0.57584532,65801.0,65800.0,0.15591424]
[1727634607843,0.57584532,65801.0,65800.0,0.16591424]
[1727634609146,0.72735177,65801.0,65800.0,0.16591424]
[1727634610347,0.57584532,65801.0,65800.0,0.16591424]
[1727634610538,0.57584532,65801.0,65800.0,0.19147299]
[1727634612756,0.21504532,65801.0,65800.0,0.075968]
[1727634613144,0.21504532,65801.0,65800.0,0.085968]
[1727634613745,0.21504532,65801.0,65800.0,0.075968]
[1727634614650,0.078967,65801.0,65800.0,0.54806909]
[1727634615341,0.078967,65801.0,65800.0,0.42649337]
[1727634615538,0.003,65801.0,65800.0,0.54805824]
[1727634615736,0.078968,65801.0,65800.0,0.54805824]
[1727634615941,0.0035,65802.0,65800.0,0.54805824]
[1727634616141,0.079466,65802.0,65801.0,0.35052537]
[1727634616350,0.075966,65802.0,65801.0,0.47209024]
[1727634616545,0.075966,65802.0,65801.0,0.35052537]
[1727634616749,0.075966,65802.0,65801.0,0.36052537]
[1727634616945,0.105966,65802.0,65801.0,0.36052537]
[1727634617149,0.105966,65802.0,65801.0,0.35052537]
[1727634617341,0.107966,65802.0,65801.0,0.35052537]
[1727634617952,0.105966,65802.0,65801.0,0.35052537]
[1727634618253,0.109966,65802.0,65801.0,0.35052537]
[1727634618852,0.110966,65802.0,65801.0,0.35052537]
[1727634620453,0.110966,65802.0,65801.0,0.47209024]
[1727634620851,0.035,65802.0,65801.0,0.47209024]
[1727634621550,0.035,65802.0,65801.0,0.09801339]
[1727634621755,0.110966,65802.0,65801.0,0.09801339]
[1727634626261,0.110966,65802.0,65801.0,0.21336158]
[1727634626760,0.110966,65802.0,65801.0,0.09801339]
[1727634626956,0.110966,65802.0,65800.0,0.075968]
[1727634627151,0.110966,65802.0,65801.0,0.09679024]
[1727634628255,0.109966,65802.0,65801.0,0.09679024]
[1727634629447,0.109966,65802.0,65801.0,0.21217226]
[1727634629661,0.075969,65799.0,65798.0,0.07995086]
[1727634629955,0.075969,65799.0,65798.0,0.15995086]
[1727634629956,0.11658316,65799.0,65798.0,0.15995086]
[1727634630365,0.21743383,65799.0,65798.0,0.21995086]
[1727634630954,0.21743383,65799.0,65798.0,0.22095086]
[1727634631460,0.21743383,65799.0,65798.0,0.16095086]
[1727634631661,0.21743383,65799.0,65798.0,0.17095086]
[1727634636570,0.075969,65799.0,65798.0,0.51828306]
[1727634637862,0.075969,65803.0,65802.0,0.075966]
[1727634638066,0.095969,65803.0,65802.0,0.28936373]
[1727634638258,0.095969,65803.0,65802.0,0.21339773]
[1727634638965,0.098969,65803.0,65802.0,0.21339773]
[1727634639167,0.102969,65803.0,65802.0,0.21339773]
[1727634641470,0.027,65803.0,65802.0,0.37936373]
[1727634641668,0.102965,65803.0,65802.0,0.37936373]
[1727634642369,0.102965,65803.0,65802.0,0.51412915]
[1727634642561,0.102965,65803.0,65802.0,0.48577566]
[1727634642764,0.102965,65803.0,65802.0,0.62050955]
[1727634643670,0.102965,65803.0,65802.0,0.62050715]
[1727634644067,0.102965,65803.0,65802.0,0.48577566]
[1727634644466,0.027,65803.0,65802.0,0.48577566]
[1727634644665,0.027,65803.0,65802.0,0.37936373]
[1727634648059,0.007,65803.0,65802.0,0.37936373]
[1727634651271,0.007,65803.0,65802.0,0.37897506]
[1727634652065,0.007,65803.0,65802.0,0.29897506]
[1727634652371,0.007,65803.0,65802.0,0.37897506]
[1727634652561,0.04715399,65803.0,65802.0,0.165966]
[1727634652764,0.09377466,65803.0,65802.0,0.165966]
[1727634653667,0.09377466,65803.0,65802.0,0.19199028]
[1727634656064,0.09379546,65803.0,65802.0,0.19199028]
[1727634659572,0.14689655,65803.0,65802.0,0.11597575]
[1727634659772,0.14689655,65803.0,65802.0,0.28199028]
[1727634660478,0.14691119,65803.0,65802.0,0.28199028]
[1727634660677,0.2413805,65803.0,65802.0,0.28199028]
[1727634660881,0.14327294,65803.0,65802.0,0.28199028]
[1727634661084,0.14461703,65803.0,65802.0,1.33791028]
[1727634661277,0.09238181,65803.0,65802.0,1.33791028]
[1727634661473,0.11298081,65803.0,65802.0,1.33791028]
[1727634661673,0.04650947,65803.0,65802.0,1.69871028]
[1727634661883,0.10948081,65806.0,65805.0,0.075963]
[1727634662087,0.12114356,65810.0,65809.0,0.075958]
[1727634662277,0.12114356,65814.0,65811.0,0.075956]
[1727634662471,0.0465504,65813.0,65812.0,0.075954]
[1727634662677,0.13627294,65820.0,65812.0,0.1]
[1727634662678,0.12114356,65817.0,65812.0,0.1]
[1727634662981,0.0035,65820.0,65817.0,0.075949]
[1727634663178,0.21221594,65822.0,65819.0,0.155946]
[1727634663383,0.04529374,65821.0,65820.0,0.075945]
[1727634663580,0.04529374,65821.0,65820.0,0.085945]
[1727634664181,0.12095181,65821.0,65820.0,0.085945]
[1727634664383,0.04529374,65821.0,65820.0,0.085945]
[1727634664583,0.04529374,65821.0,65820.0,0.075945]
[1727634664775,0.18024555,65821.0,65820.0,0.076945]
[1727634665185,0.05929374,65821.0,65820.0,0.076945]
[1727634665980,0.06929374,65821.0,65820.0,0.077945]
[1727634666688,0.024,65821.0,65820.0,0.1756294]
[1727634666884,0.024,65821.0,65820.0,0.25137415]
[1727634667079,0.024,65821.0,65820.0,0.1756294]
[1727634667280,0.024,65821.0,65820.0,0.25135736]
[1727634667677,0.024,65821.0,65820.0,0.15367296]
[1727634668186,0.024,65821.0,65820.0,0.077945]
[1727634668387,0.075943,65822.0,65820.0,0.15367296]
[1727634668890,0.075943,65822.0,65821.0,0.075944]
[1727634669483,0.088943,65822.0,65821.0,0.075944]
[1727634669789,0.090943,65822.0,65821.0,0.075944]
[1727634670190,0.090943,65822.0,65821.0,0.076944]
[1727634670486,0.090943,65822.0,65821.0,0.077944]
[1727634672479,0.090943,65822.0,65821.0,0.167944]
[1727634675588,0.090943,65822.0,65821.0,0.21335221]
[1727634677589,0.090943,65822.0,65821.0,0.21335957]
[1727634678095,0.090943,65822.0,65821.0,0.167944]
[1727634678287,0.090943,65822.0,65821.0,0.21335957]
[1727634678798,0.090943,65822.0,65821.0,0.13741557]
[1727634678983,0.090943,65822.0,65821.0,0.092]
[1727634679184,0.090943,65822.0,65821.0,0.167944]
[1727634679595,0.090943,65822.0,65821.0,0.21335957]
[1727634681791,0.22761272,65822.0,65821.0,0.07]
[1727634682095,0.22761272,65822.0,65821.0,0.15]
[1727634682896,0.22761272,65822.0,65821.0,0.225944]
[1727634683088,0.23761272,65822.0,65821.0,0.225944]
[1727634683283,0.23172971,65822.0,65821.0,0.15]
[1727634683585,0.18208707,65822.0,65821.0,0.15]
[1727634684292,0.18208707,65822.0,65821.0,0.225944]
[1727634684293,0.17208707,65822.0,65821.0,0.225944]
[1727634684897,0.09614407,65822.0,65821.0,0.225944]
[1727634685087,0.12091651,65824.0,65821.0,0.225944]
[1727634685088,0.09531465,65824.0,65821.0,1.56656]
[1727634685395,0.0035,65831.0,65830.0,0.075934]
[1727634685692,0.0035,65833.0,65831.0,0.075933]
[1727634685693,0.12091651,65833.0,65831.0,0.075933]
[1727634685887,0.12091651,65833.0,65832.0,0.075931]
[1727634686093,0.12091651,65835.0,65832.0,0.165931]
[1727634686286,0.19684551,65835.0,65834.0,0.08]
[1727634686581,0.075929,65835.0,65834.0,0.19]
[1727634686993,0.075929,65835.0,65834.0,0.08]
[1727634687201,0.089929,65835.0,65834.0,0.08]
[1727634687384,0.079929,65835.0,65834.0,0.08]
[1727634687996,0.089929,65835.0,65834.0,0.08]
[1727634688294,0.079929,65835.0,65834.0,0.08]
[1727634688695,0.075929,65835.0,65834.0,0.081]
[1727634688900,0.075929,65835.0,65834.0,0.082]
[1727634692799,0.075929,65835.0,65834.0,0.157929]
[1727634694802,0.075929,65835.0,65834.0,0.267929]
[1727634696799,0.15230734,65835.0,65834.0,0.11]
[1727634696999,0.19903438,65835.0,65834.0,0.11]
[1727634697702,0.12310538,65835.0,65834.0,0.185929]
[1727634697909,0.1229858,65835.0,65834.0,0.185929]
[1727634698107,0.07637834,65835.0,65834.0,0.185929]
[1727634699898,0.07837834,65835.0,65834.0,0.187929]
[1727634703908,0.07837834,65835.0,65834.0,0.548729]
[1727634704810,0.002,65835.0,65834.0,0.548729]
[1727634706009,0.087928,65835.0,65834.0,0.06260111]
[1727634706405,0.087928,65835.0,65834.0,0.002]
[1727634708212,0.087928,65835.0,65834.0,0.04746521]
[1727634708713,0.087928,65835.0,65834.0,0.002]
[1727634710504,1.143608,65835.0,65834.0,0.002]
[1727634710705,0.075931,65832.0,65831.0,0.04546521]
[1727634710914,0.596731,65832.0,65831.0,0.04546521]
[1727634711805,0.596731,65832.0,65831.0,0.06160111]
[1727634712002,0.596731,65832.0,65831.0,0.001]
[1727634712214,0.596731,65832.0,65831.0,0.06160111]
[1727634712415,0.599731,65832.0,65831.0,0.06260111]
[1727634713702,0.599731,65832.0,65831.0,0.002]
[1727634717020,0.599731,65832.0,65831.0,0.04750015]
[1727634718124,0.599731,65832.0,65831.0,0.002]
[1727634718817,0.599731,65832.0,65831.0,0.04750015]
[1727634719218,0.599731,65832.0,65831.0,0.002]
[1727634719817,0.85225856,65832.0,65831.0,0.002]
[1727634720321,0.71612792,65832.0,65831.0,0.002]
[1727634720524,0.85225856,65832.0,65831.0,0.002]
[1727634720914,0.71612792,65832.0,65831.0,0.002]
[1727634722522,1.77184792,65832.0,65828.0,0.0035]
[1727634722722,0.075936,65828.0,65827.0,0.0035]
[1727634722918,0.17571495,65828.0,65827.0,0.0035]
[1727634723229,0.21891495,65828.0,65827.0,0.0035]
[1727634724734,0.21888152,65828.0,65827.0,0.0035]
[1727634725226,0.22288152,65828.0,65827.0,0.0045]
[1727634725829,0.22288152,65828.0,65827.0,0.0055]
[1727634726920,0.11513869,65828.0,65827.0,0.0055]
[1727634727927,0.47593869,65828.0,65827.0,0.0055]
[1727634731220,0.47593869,65828.0,65827.0,0.08122796]
[1727634732130,0.47593869,65828.0,65827.0,0.1842344]
[1727634733324,0.47593869,65828.0,65827.0,0.10850644]
[1727634733822,0.47593869,65828.0,65827.0,0.18432879]
[1727634734023,0.43273869,65828.0,65827.0,0.10850644]
[1727634734424,0.43273869,65828.0,65827.0,0.0055]
[1727634734630,0.43273869,65828.0,65827.0,0.10848426]
[1727634734827,0.50387223,65828.0,65827.0,0.0055]
[1727634737127,0.55048937,65828.0,65827.0,0.0055]
[1727634738330,0.68660482,65828.0,65827.0,0.0055]
[1727634738839,0.55048937,65828.0,65827.0,0.0055]
[1727634739040,0.55056043,65828.0,65827.0,0.0055]
[1727634739435,0.51770484,65828.0,65827.0,0.0055]
[1727634739749,0.15993472,65828.0,65827.0,0.0155]
[1727634739937,0.15993472,65828.0,65827.0,0.0055]
[1727634739938,0.16993472,65828.0,65827.0,0.0055]
[1727634740128,0.16993377,65828.0,65827.0,0.0055]
[1727634740324,0.16993377,65828.0,65827.0,0.081437]
[1727634740525,0.11331781,65828.0,65827.0,0.091437]
[1727634740733,0.11331781,65828.0,65827.0,0.081437]
[1727634741943,0.04193869,65828.0,65827.0,0.30699306]
[1727634742328,0.004,65828.0,65827.0,0.31699306]
[1727634742537,0.3608,65836.0,65835.0,0.075928]
[1727634742538,0.436728,65836.0,65835.0,0.075928]
[1727634742729,0.436728,65836.0,65835.0,0.25882946]
[1727634742930,0.436728,65836.0,65835.0,0.38133044]
[1727634743535,0.3608,65836.0,65835.0,0.38133044]
[1727634743939,0.3608,65836.0,65835.0,0.155928]
[1727634744135,0.3648,65836.0,65835.0,0.38198856]
[1727634744334,0.3648,65836.0,65835.0,0.25960341]
[1727634744642,0.3648,65836.0,65835.0,0.26060341]
[1727634746648,0.3748,65836.0,65835.0,0.26060341]
[1727634747257,0.3748,65836.0,65835.0,0.35163409]
[1727634747446,0.450727,65836.0,65835.0,0.35163409]
[1727634747847,0.450727,65836.0,65835.0,0.27163409]
[1727634748143,0.450727,65836.0,65835.0,0.10467541]
[1727634748348,0.450727,65836.0,65835.0,0.002]
[1727634749839,0.48916117,65836.0,65835.0,0.002]
[1727634750046,0.56888051,65836.0,65835.0,0.00114908]
[1727634750553,0.075933,65831.0,65830.0,0.0035]
[1727634750857,0.075938,65826.0,65825.0,0.0429]
[1727634751042,0.1574752,65826.0,65825.0,0.0394]
[1727634751246,0.20409151,65826.0,65825.0,0.0394]
[1727634753553,0.20354671,65826.0,65825.0,0.0404]
[1727634753851,0.20554671,65826.0,65825.0,0.0414]
[1727634754853,0.37222265,65826.0,65825.0,0.0414]
[1727634755657,0.73302265,65826.0,65825.0,0.0414]
[1727634756958,0.61541394,65826.0,65825.0,0.14455299]
[1727634758163,0.25461394,65826.0,65825.0,0.14455299]
[1727634758359,0.61541394,65826.0,65825.0,0.14454392]
[1727634758567,0.60541394,65826.0,65825.0,0.14454392]
[1727634758862,0.61541394,65826.0,65825.0,0.14454392]
[1727634761566,0.61541394,65826.0,65825.0,0.10514392]
[1727634761960,0.448738,65826.0,65825.0,0.10514392]
[1727634763176,0.448738,65826.0,65825.0,0.10513397]
[1727634765475,0.528738,65826.0,65825.0,0.10513397]
[1727634765977,0.528738,65826.0,65825.0,0.18099047]
[1727634768479,0.518738,65826.0,65825.0,0.18099047]
[1727634768679,0.197938,65826.0,65825.0,0.18099047]
[1727634768972,0.558738,65826.0,65825.0,0.18099047]
[1727634769173,0.197938,65826.0,65825.0,0.18099047]
[1727634769472,0.558738,65826.0,65825.0,0.18099047]
[1727634770367,0.558738,65826.0,65825.0,0.18098057]
[1727634771374,0.558738,65826.0,65825.0,0.0778565]
[1727634772178,0.558738,65826.0,65825.0,0.002]
[1727634772179,0.23074299,65826.0,65825.0,0.002]
[1727634772380,0.59154299,65826.0,65825.0,0.002]
[1727634772978,0.62963087,65826.0,65825.0,0.002]
[1727634773169,0.26883087,65826.0,65825.0,0.002]
[1727634773369,0.62963087,65826.0,65825.0,0.002]
[1727634774276,0.26883087,65826.0,65825.0,0.002]
[1727634774575,0.62963087,65826.0,65825.0,0.002]
[1727634777468,0.26883087,65826.0,65825.0,0.002]
[1727634777672,0.81261483,65826.0,65825.0,0.002]
[1727634777976,0.67635078,65826.0,65825.0,0.002]
[1727634779973,0.52073867,65826.0,65825.0,0.10525807]
[1727634786076,0.52073867,65826.0,65825.0,0.1050127]
[1727634786771,0.15993867,65826.0,65825.0,0.1050127]
[1727634786980,0.15993867,65826.0,65825.0,0.002]
[1727634786981,0.31163126,65826.0,65825.0,0.002]
[1727634787181,0.79083052,65826.0,65825.0,0.002]
[1727634787381,0.43003052,65826.0,65825.0,0.002]
[1727634787781,0.79083052,65826.0,65825.0,0.002]
[1727634788990,0.63913793,65826.0,65825.0,0.002]
[1727634791090,0.63915308,65826.0,65825.0,0.002]
[1727634792273,0.80581962,65826.0,65825.0,0.002]
[1727634793892,0.44501962,65826.0,65825.0,0.002]
[1727634794387,0.80581962,65826.0,65825.0,0.002]
[1727634795089,0.52073867,65826.0,65825.0,0.22782245]
[1727634796889,0.15993867,65826.0,65825.0,0.22782245]
[1727634797189,0.52073867,65826.0,65825.0,0.22782245]
[1727634798087,0.15993867,65826.0,65825.0,0.22782245]
[1727634798291,0.52073867,65826.0,65825.0,0.22782245]
[1727634799596,0.15993867,65826.0,65825.0,0.22782245]
[1727634800100,0.52073867,65826.0,65825.0,0.22782245]
[1727634800486,0.52073867,65826.0,65825.0,0.002]
[1727634800687,0.15993867,65826.0,65825.0,0.002]
[1727634800887,0.52073867,65826.0,65825.0,0.002]
[1727634801087,0.52073867,65826.0,65825.0,0.10501906]
[1727634801493,0.52073867,65826.0,65825.0,0.22781383]
[1727634801800,0.15993867,65826.0,65825.0,0.22781383]
[1727634802201,0.52073867,65826.0,65825.0,0.22781383]